[Event "*** Titled Tuesday Blitz"]
[Site "Chess.com"]
[Date "2020.05.05"]
[Round "4"]
[White "lupta_robin"]
[Black "Man-Chuk"]
[Result "1-0"]
[WhiteElo "2518"]
[BlackElo "2738"]
[TimeControl "180+1"]
[EndTime "10:41:49 PDT"]
[Termination "lupta_robin won by resignation"]

1. e4 {[%clk 0:03:00.9]} 1... c5 {[%clk 0:02:57.7]} 2. Nf3 {[%clk 0:02:58.9]}
2... d6 {[%clk 0:02:58.2]} 3. d4 {[%clk 0:02:56.8]} 3... cxd4 {[%clk 0:02:59.1]}
4. Nxd4 {[%clk 0:02:57.3]} 4... Nf6 {[%clk 0:02:59.7]} 5. Nc3 {[%clk 0:02:57.7]}
5... a6 {[%clk 0:02:59.1]} 6. Be3 {[%clk 0:02:54.1]} 6... e5 {[%clk 0:02:54.7]}
7. Nb3 {[%clk 0:02:53.9]} 7... Be6 {[%clk 0:02:51.3]} 8. Qd2 {[%clk 0:02:52.6]}
8... Be7 {[%clk 0:02:48.3]} 9. f3 {[%clk 0:02:52.5]} 9... Nbd7 {[%clk 0:02:33]}
10. g4 {[%clk 0:02:51]} 10... Nc5 {[%clk 0:02:31.3]} 11. g5 {[%clk 0:02:38.8]}
11... Nfd7 {[%clk 0:02:21.5]} 12. h4 {[%clk 0:02:36]} 12... Nb6 {[%clk
0:02:04.4]} 13. h5 {[%clk 0:02:32]} 13... Rc8 {[%clk 0:01:54.6]} 14. O-O-O
{[%clk 0:02:20.9]} 14... Nca4 {[%clk 0:01:32.8]} 15. Nxa4 {[%clk 0:02:16.4]}
15... Nxa4 {[%clk 0:01:33.7]} 16. Kb1 {[%clk 0:02:16]} 16... Qc7 {[%clk
0:01:16.6]} 17. Be2 {[%clk 0:01:58.9]} 17... b5 {[%clk 0:00:58.9]} 18. f4 {[%clk
0:01:52.7]} 18... Bc4 {[%clk 0:00:38.9]} 19. f5 {[%clk 0:01:43.7]} 19... Bxe2
{[%clk 0:00:39]} 20. Qxe2 {[%clk 0:01:41.7]} 20... Qc4 {[%clk 0:00:39.6]} 21.
Qg2 {[%clk 0:01:34.5]} 21... f6 {[%clk 0:00:25.4]} 22. gxf6 {[%clk 0:01:25]}
22... gxf6 {[%clk 0:00:26.3]} 23. Rhg1 {[%clk 0:01:14.5]} 23... Kd7 {[%clk
0:00:26.4]} 24. Bc1 {[%clk 0:01:07.1]} 24... Rhg8 {[%clk 0:00:25.6]} 25. Qf2
{[%clk 0:00:47.5]} 25... Rxg1 {[%clk 0:00:23.3]} 26. Rxg1 {[%clk 0:00:45.8]}
26... Qxe4 {[%clk 0:00:23.8]} 27. Rg7 {[%clk 0:00:43.8]} 27... h6 {[%clk
0:00:14.2]} 28. Qa7+ {[%clk 0:00:41]} 28... Rc7 {[%clk 0:00:08.2]} 29. Rxe7+
{[%clk 0:00:41]} 29... Kxe7 {[%clk 0:00:09.1]} 30. Qxc7+ {[%clk 0:00:41.2]}
30... Ke8 {[%clk 0:00:09.6]} 31. Qc8+ {[%clk 0:00:36.2]} 31... Kf7 {[%clk
0:00:10]} 32. Qe6+ {[%clk 0:00:36.3]} 32... Kg7 {[%clk 0:00:10.3]} 33. Qe7+
{[%clk 0:00:36.5]} 33... Kg8 {[%clk 0:00:10.3]} 34. Qe8+ {[%clk 0:00:35.5]}
34... Kg7 {[%clk 0:00:10.1]} 35. Qg6+ {[%clk 0:00:36.1]} 35... Kf8 {[%clk
0:00:09.8]} 36. Qxf6+ {[%clk 0:00:36.6]} 36... Kg8 {[%clk 0:00:10]} 37. Qg6+
{[%clk 0:00:36.4]} 37... Kf8 {[%clk 0:00:08.8]} 38. Qxd6+ {[%clk 0:00:36.8]}
38... Ke8 {[%clk 0:00:08]} 39. f6 {[%clk 0:00:33.9]} 39... Qb7 {[%clk
0:00:05.7]} 40. Qxe5+ {[%clk 0:00:32.3]} 40... Kf7 {[%clk 0:00:05.7]} 41. Qe7+
{[%clk 0:00:30.2]} 41... Qxe7 {[%clk 0:00:05.4]} 42. fxe7 {[%clk 0:00:31.1]}
42... Kxe7 {[%clk 0:00:06.3]} 43. Bxh6 {[%clk 0:00:31.6]} 43... Nb6 {[%clk
0:00:06.8]} 44. Bc1 {[%clk 0:00:29.3]} 44... Kf7 {[%clk 0:00:05.4]} 45. h6
{[%clk 0:00:29.7]} 45... Kg6 {[%clk 0:00:05.6]} 46. Nc5 {[%clk 0:00:29.9]} 46...
a5 {[%clk 0:00:05.9]} 47. b3 {[%clk 0:00:28.2]} 47... Nd5 {[%clk 0:00:05.6]} 48.
Kb2 {[%clk 0:00:27.9]} 48... Kh7 {[%clk 0:00:04.2]} 49. a3 {[%clk 0:00:27.1]}
49... b4 {[%clk 0:00:03.8]} 50. axb4 {[%clk 0:00:27.2]} 50... axb4 {[%clk
0:00:04.7]} 51. Nd3 {[%clk 0:00:27.6]} 51... Kg6 {[%clk 0:00:05]} 52. Bd2 {[%clk
0:00:27.8]} 52... Nf6 {[%clk 0:00:05.3]} 53. Nxb4 {[%clk 0:00:27.3]} 53... Ne4
{[%clk 0:00:06.2]} 54. Bc1 {[%clk 0:00:27.7]} 54... Nd6 {[%clk 0:00:05.9]} 55.
Nd3 {[%clk 0:00:28.1]} 55... Nf7 {[%clk 0:00:05.7]} 56. c4 {[%clk 0:00:28.1]}
56... Nd6 {[%clk 0:00:06.1]} 57. Kc3 {[%clk 0:00:27.9]} 57... Ne4+ {[%clk
0:00:06.4]} 58. Kd4 {[%clk 0:00:28.3]} 58... Ng3 {[%clk 0:00:07]} 59. Kd5 {[%clk
0:00:26.3]} 59... Kf7 {[%clk 0:00:05.6]} 60. b4 {[%clk 0:00:25.8]} 60... Nf5
{[%clk 0:00:04.3]} 61. b5 {[%clk 0:00:24.9]} 61... Ne7+ {[%clk 0:00:04.9]} 62.
Kc5 {[%clk 0:00:23.9]} 62... Kg6 {[%clk 0:00:03.5]} 63. b6 {[%clk 0:00:23.7]}
1-0

[Event "*** Titled Tuesday Blitz"]
[Site "Chess.com"]
[Date "2020.05.05"]
[Round "4"]
[White "Happy1712Drummer"]
[Black "Maybe00"]
[Result "0-1"]
[WhiteElo "2548"]
[BlackElo "2813"]
[TimeControl "180+1"]
[EndTime "10:41:51 PDT"]
[Termination "Maybe00 won on time"]

1. Nf3 {[%clk 0:03:00.1]} 1... d5 {[%clk 0:03:00]} 2. d4 {[%clk 0:02:59.4]} 2...
Nf6 {[%clk 0:02:59.8]} 3. c4 {[%clk 0:02:59.5]} 3... c6 {[%clk 0:03:00.3]} 4.
Nc3 {[%clk 0:02:58.3]} 4... e6 {[%clk 0:03:00.2]} 5. cxd5 {[%clk 0:02:54.3]}
5... exd5 {[%clk 0:02:59.5]} 6. Qc2 {[%clk 0:02:55.2]} 6... g6 {[%clk
0:02:57.7]} 7. Bg5 {[%clk 0:02:54.2]} 7... Be7 {[%clk 0:02:57.3]} 8. Bxf6 {[%clk
0:02:52.2]} 8... Bxf6 {[%clk 0:02:57]} 9. e4 {[%clk 0:02:53.1]} 9... dxe4 {[%clk
0:02:55.8]} 10. Qxe4+ {[%clk 0:02:52.2]} 10... Qe7 {[%clk 0:02:54.7]} 11. Bc4
{[%clk 0:02:51.7]} 11... O-O {[%clk 0:02:50.2]} 12. O-O {[%clk 0:02:39.4]} 12...
Nd7 {[%clk 0:02:47.4]} 13. Qf4 {[%clk 0:02:20.1]} 13... Bg7 {[%clk 0:02:44.3]}
14. Rfe1 {[%clk 0:02:12.5]} 14... Qf6 {[%clk 0:02:41.8]} 15. Qc7 {[%clk
0:02:05.4]} 15... Nb6 {[%clk 0:02:39.5]} 16. Bb3 {[%clk 0:02:02.9]} 16... Bg4
{[%clk 0:01:17.6]} 17. Ne5 {[%clk 0:01:59.6]} 17... Be6 {[%clk 0:01:16.5]} 18.
Qxb7 {[%clk 0:01:26.7]} 18... Bxb3 {[%clk 0:00:59.7]} 19. axb3 {[%clk
0:01:27.6]} 19... Qd6 {[%clk 0:00:46.2]} 20. Nxc6 {[%clk 0:01:17.6]} 20... Kh8
{[%clk 0:00:44.7]} 21. Nb5 {[%clk 0:01:01.6]} 21... Qd5 {[%clk 0:00:39.2]} 22.
Nbxa7 {[%clk 0:00:50.8]} 22... Qxb3 {[%clk 0:00:33.5]} 23. d5 {[%clk 0:00:38.3]}
23... Bxb2 {[%clk 0:00:30.7]} 24. Rab1 {[%clk 0:00:34.6]} 24... Rae8 {[%clk
0:00:30.6]} 25. Rxe8 {[%clk 0:00:20]} 25... Rxe8 {[%clk 0:00:31.5]} 26. Qxf7
{[%clk 0:00:20.3]} 26... Ra8 {[%clk 0:00:27.2]} 27. h4 {[%clk 0:00:18.2]} 27...
Qc2 {[%clk 0:00:23.1]} 28. Re1 {[%clk 0:00:17.3]} 28... Qf5 {[%clk 0:00:16.2]}
29. Re8+ {[%clk 0:00:15.7]} 29... Rxe8 {[%clk 0:00:16.3]} 30. Qxe8+ {[%clk
0:00:16]} 30... Kg7 {[%clk 0:00:16.9]} 31. Qe7+ {[%clk 0:00:15.9]} 31... Kh6
{[%clk 0:00:16.9]} 32. Qe3+ {[%clk 0:00:15.6]} 32... Kh5 {[%clk 0:00:15.3]} 33.
Qxb6 {[%clk 0:00:15.6]} 33... Qb1+ {[%clk 0:00:15.5]} 34. Kh2 {[%clk 0:00:14.8]}
34... Be5+ {[%clk 0:00:16.2]} 35. Nxe5 {[%clk 0:00:13.7]} 35... Qxb6 {[%clk
0:00:17.1]} 36. Nac6 {[%clk 0:00:13]} 36... Kh6 {[%clk 0:00:16.3]} 37. Kh3
{[%clk 0:00:11.5]} 37... Qb3+ {[%clk 0:00:15.7]} 38. Nf3 {[%clk 0:00:11.1]}
38... Qxd5 {[%clk 0:00:16.1]} 39. Nce5 {[%clk 0:00:11.6]} 39... Qe6+ {[%clk
0:00:16.1]} 40. g4 {[%clk 0:00:10.6]} 40... Kg7 {[%clk 0:00:16.1]} 41. Kg3
{[%clk 0:00:10.3]} 41... h6 {[%clk 0:00:16.6]} 42. g5 {[%clk 0:00:10.4]} 42...
Qd6 {[%clk 0:00:16.6]} 43. Kg2 {[%clk 0:00:08.6]} 43... h5 {[%clk 0:00:15.3]}
44. Kg3 {[%clk 0:00:07.2]} 44... Kf8 {[%clk 0:00:14.6]} 45. Kg2 {[%clk
0:00:07.3]} 45... Ke7 {[%clk 0:00:15.1]} 46. Nc4 {[%clk 0:00:06.9]} 46... Qc5
{[%clk 0:00:14.3]} 47. Ne3 {[%clk 0:00:07.8]} 47... Qb6 {[%clk 0:00:14.4]} 48.
Ne5 {[%clk 0:00:07.1]} 48... Qa6 {[%clk 0:00:14]} 49. Nf3 {[%clk 0:00:07]} 49...
Qa8 {[%clk 0:00:13.1]} 50. Kg3 {[%clk 0:00:06.6]} 50... Qb8+ {[%clk 0:00:13.5]}
51. Kg2 {[%clk 0:00:06.7]} 51... Kf7 {[%clk 0:00:13.5]} 52. Nd4 {[%clk
0:00:04.8]} 52... Qf4 {[%clk 0:00:13]} 53. Nf3 {[%clk 0:00:05.2]} 53... Qe4
{[%clk 0:00:12.6]} 54. Nf1 {[%clk 0:00:04.4]} 54... Qg4+ {[%clk 0:00:12.1]} 55.
Ng3 {[%clk 0:00:04.9]} 55... Ke6 {[%clk 0:00:12.4]} 56. Nd2 {[%clk 0:00:01.5]}
56... Qxh4 {[%clk 0:00:12.3]} 57. Nde4 {[%clk 0:00:02]} 57... Qf4 {[%clk
0:00:11.5]} 58. f3 {[%clk 0:00:01.8]} 58... h4 {[%clk 0:00:11]} 59. Ne2 {[%clk
0:00:01.5]} 59... Qe3 {[%clk 0:00:10.4]} 60. N2c3 {[%clk 0:00:01]} 60... Qe1
{[%clk 0:00:10.1]} 0-1

[Event "*** Titled Tuesday Blitz"]
[Site "Chess.com"]
[Date "2020.05.05"]
[Round "4"]
[White "viktorskliarov"]
[Black "zajka-molotok"]
[Result "1-0"]
[WhiteElo "2578"]
[BlackElo "2387"]
[TimeControl "180+1"]
[EndTime "10:41:53 PDT"]
[Termination "viktorskliarov won on time"]

1. e4 {[%clk 0:03:00.9]} 1... e5 {[%clk 0:02:58.9]} 2. Nc3 {[%clk 0:03:00.2]}
2... Nf6 {[%clk 0:02:58]} 3. Bc4 {[%clk 0:02:59]} 3... Nc6 {[%clk 0:02:57.4]} 4.
d3 {[%clk 0:02:58.7]} 4... Bc5 {[%clk 0:02:55.7]} 5. a3 {[%clk 0:02:58]} 5... d6
{[%clk 0:02:50]} 6. h3 {[%clk 0:02:56.8]} 6... a6 {[%clk 0:02:40.5]} 7. Nge2
{[%clk 0:02:55.9]} 7... Ne7 {[%clk 0:02:22]} 8. Bg5 {[%clk 0:02:49.6]} 8... Ng6
{[%clk 0:02:13.8]} 9. Nd5 {[%clk 0:02:38.6]} 9... Be6 {[%clk 0:02:04.2]} 10.
Bxf6 {[%clk 0:02:13]} 10... gxf6 {[%clk 0:02:03]} 11. b4 {[%clk 0:02:13.7]}
11... Ba7 {[%clk 0:02:00.5]} 12. Ng3 {[%clk 0:02:09.8]} 12... c6 {[%clk
0:01:56.6]} 13. Ne3 {[%clk 0:01:59.1]} 13... d5 {[%clk 0:01:56]} 14. Bb3 {[%clk
0:01:54.2]} 14... Nf4 {[%clk 0:01:53.9]} 15. O-O {[%clk 0:01:42.6]} 15... Qd7
{[%clk 0:01:43.8]} 16. Ngf5 {[%clk 0:01:11.7]} 16... Rg8 {[%clk 0:01:41.7]} 17.
Ng4 {[%clk 0:00:57.8]} 17... Rg6 {[%clk 0:01:31.6]} 18. g3 {[%clk 0:00:17.6]}
18... Nxh3+ {[%clk 0:01:29.9]} 19. Kg2 {[%clk 0:00:17.1]} 19... Bxf5 {[%clk
0:01:23.7]} 20. exf5 {[%clk 0:00:14.9]} 20... Qxf5 {[%clk 0:01:23.1]} 21. Kxh3
{[%clk 0:00:12.2]} 21... Qh5+ {[%clk 0:01:22.2]} 22. Kg2 {[%clk 0:00:11.9]}
22... Qxg4 {[%clk 0:01:18.7]} 23. Qxg4 {[%clk 0:00:10.1]} 23... Rxg4 {[%clk
0:01:18.3]} 24. Rh1 {[%clk 0:00:11]} 24... Rg7 {[%clk 0:01:15.5]} 25. c4 {[%clk
0:00:11.4]} 25... Rd8 {[%clk 0:01:12.4]} 26. cxd5 {[%clk 0:00:11.8]} 26... cxd5
{[%clk 0:01:12.1]} 27. Rac1 {[%clk 0:00:12.5]} 27... Bb6 {[%clk 0:01:11.3]} 28.
a4 {[%clk 0:00:11.9]} 28... Rd6 {[%clk 0:00:47.5]} 29. a5 {[%clk 0:00:11.6]}
29... Bd8 {[%clk 0:00:46.8]} 30. Ba4+ {[%clk 0:00:11.6]} 30... Ke7 {[%clk
0:00:45]} 31. Rc8 {[%clk 0:00:12.1]} 31... b6 {[%clk 0:00:33]} 32. Ra8 {[%clk
0:00:05.1]} 32... bxa5 {[%clk 0:00:31.1]} 33. Ra7+ {[%clk 0:00:05.6]} 33... Ke6
{[%clk 0:00:27.4]} 34. bxa5 {[%clk 0:00:05.2]} 34... Bxa5 {[%clk 0:00:26.4]} 35.
Ra1 {[%clk 0:00:05.1]} 35... Bc3 {[%clk 0:00:25.4]} 36. Ra2 {[%clk 0:00:04.8]}
36... f5 {[%clk 0:00:23.2]} 37. Bb3 {[%clk 0:00:04.2]} 37... a5 {[%clk
0:00:22.1]} 38. Rc2 {[%clk 0:00:02.7]} 38... Bb4 {[%clk 0:00:21]} 39. Rcc7
{[%clk 0:00:02.3]} 39... e4 {[%clk 0:00:16.3]} 40. dxe4 {[%clk 0:00:01.5]} 40...
fxe4 {[%clk 0:00:16]} 41. Re7+ {[%clk 0:00:02.4]} 41... Kf6 {[%clk 0:00:16.2]}
42. Red7 {[%clk 0:00:02.8]} 42... Rxd7 {[%clk 0:00:14.9]} 43. Rxd7 {[%clk
0:00:03.7]} 43... Ke6 {[%clk 0:00:11.5]} 44. Rxd5 {[%clk 0:00:03.6]} 44... Ke7
{[%clk 0:00:10.7]} 45. Rb5 {[%clk 0:00:03.5]} 45... f5 {[%clk 0:00:10.1]} 46.
Rxf5 {[%clk 0:00:02.4]} 46... Kd6 {[%clk 0:00:09.6]} 47. Rf6+ {[%clk 0:00:02.6]}
47... Kc5 {[%clk 0:00:09.3]} 48. Re6 {[%clk 0:00:03]} 48... Kd4 {[%clk
0:00:09.3]} 49. Bc2 {[%clk 0:00:03.5]} 49... Kc3 {[%clk 0:00:09]} 50. Bxe4
{[%clk 0:00:03.3]} 50... a4 {[%clk 0:00:09]} 51. Rc6+ {[%clk 0:00:03.8]} 51...
Kb2 {[%clk 0:00:08.7]} 52. Bd5 {[%clk 0:00:04.5]} 52... a3 {[%clk 0:00:08.4]}
53. Ra6 {[%clk 0:00:04.8]} 53... Rd7 {[%clk 0:00:07]} 54. Be6 {[%clk 0:00:04.7]}
54... Re7 {[%clk 0:00:07.1]} 55. f4 {[%clk 0:00:04.5]} 55... Bc3 {[%clk
0:00:06]} 56. f5 {[%clk 0:00:04.4]} 56... Rc7 {[%clk 0:00:05]} 57. Kf3 {[%clk
0:00:04.6]} 57... Rb7 {[%clk 0:00:04.9]} 58. g4 {[%clk 0:00:04.9]} 58... Bb4
{[%clk 0:00:04.1]} 59. g5 {[%clk 0:00:05]} 59... Bc3 {[%clk 0:00:03.2]} 60. Kg4
{[%clk 0:00:05.3]} 1-0

[Event "*** Titled Tuesday Blitz"]
[Site "Chess.com"]
[Date "2020.05.05"]
[Round "4"]
[White "DishonorOnYourCow"]
[Black "SmirnovTimofey2000"]
[Result "1/2-1/2"]
[WhiteElo "2334"]
[BlackElo "2526"]
[TimeControl "180+1"]
[EndTime "10:41:54 PDT"]
[Termination "Game drawn - insufficient material"]

1. d4 {[%clk 0:03:00.9]} 1... d5 {[%clk 0:02:59.5]} 2. c4 {[%clk 0:02:59.9]}
2... c6 {[%clk 0:02:59.8]} 3. Nf3 {[%clk 0:02:59.4]} 3... Nf6 {[%clk 0:02:59.9]}
4. e3 {[%clk 0:02:58.4]} 4... Bf5 {[%clk 0:02:59.3]} 5. Nc3 {[%clk 0:02:54.8]}
5... e6 {[%clk 0:02:59.3]} 6. Nh4 {[%clk 0:02:54]} 6... Bg6 {[%clk 0:02:56.1]}
7. Be2 {[%clk 0:02:42.4]} 7... Bd6 {[%clk 0:02:54]} 8. g3 {[%clk 0:02:32.2]}
8... Nbd7 {[%clk 0:02:42.2]} 9. O-O {[%clk 0:02:21]} 9... Qe7 {[%clk 0:02:40]}
10. b3 {[%clk 0:02:09.5]} 10... O-O {[%clk 0:02:32]} 11. Nxg6 {[%clk 0:02:06.5]}
11... hxg6 {[%clk 0:02:32.9]} 12. Bb2 {[%clk 0:02:06.7]} 12... Ba3 {[%clk
0:02:28.7]} 13. Bxa3 {[%clk 0:01:47.9]} 13... Qxa3 {[%clk 0:02:25.3]} 14. Qc1
{[%clk 0:01:40.1]} 14... Qxc1 {[%clk 0:02:21.7]} 15. Rfxc1 {[%clk 0:01:38.9]}
15... Rfd8 {[%clk 0:02:06.6]} 16. cxd5 {[%clk 0:01:34.7]} 16... exd5 {[%clk
0:01:54.6]} 17. b4 {[%clk 0:01:30.9]} 17... a6 {[%clk 0:01:53.8]} 18. a4 {[%clk
0:01:28.8]} 18... b5 {[%clk 0:01:53.4]} 19. Nb1 {[%clk 0:00:54.4]} 19... Nb6
{[%clk 0:01:47.5]} 20. axb5 {[%clk 0:00:43]} 20... cxb5 {[%clk 0:01:48.4]} 21.
Nd2 {[%clk 0:00:40]} 21... Nc4 {[%clk 0:01:45.3]} 22. Nb3 {[%clk 0:00:35.4]}
22... Ra7 {[%clk 0:01:31.5]} 23. Na5 {[%clk 0:00:29.1]} 23... Rc8 {[%clk
0:01:27.1]} 24. Ra2 {[%clk 0:00:22.9]} 24... Ne8 {[%clk 0:01:05.8]} 25. Bf3
{[%clk 0:00:19.5]} 25... Rd7 {[%clk 0:00:54.4]} 26. Nxc4 {[%clk 0:00:15.7]}
26... dxc4 {[%clk 0:00:49.9]} 27. Rxa6 {[%clk 0:00:15.2]} 27... Nd6 {[%clk
0:00:43.4]} 28. Rb6 {[%clk 0:00:13]} 28... f5 {[%clk 0:00:37.8]} 29. Bc6 {[%clk
0:00:12.2]} 29... Rdd8 {[%clk 0:00:32.3]} 30. Bxb5 {[%clk 0:00:12.1]} 30... Kf8
{[%clk 0:00:30.9]} 31. Ba6 {[%clk 0:00:10.9]} 31... Rc7 {[%clk 0:00:30.8]} 32.
b5 {[%clk 0:00:10.5]} 32... Ke7 {[%clk 0:00:27.5]} 33. Kg2 {[%clk 0:00:08]}
33... Kd7 {[%clk 0:00:25.1]} 34. f3 {[%clk 0:00:07.5]} 34... Re8 {[%clk
0:00:23.6]} 35. Rc6 {[%clk 0:00:07.2]} 35... Rxe3 {[%clk 0:00:20.6]} 36. Rxc7+
{[%clk 0:00:04.2]} 36... Kxc7 {[%clk 0:00:21.5]} 37. b6+ {[%clk 0:00:03.1]}
37... Kxb6 {[%clk 0:00:21.8]} 38. Bxc4 {[%clk 0:00:02.9]} 38... g5 {[%clk
0:00:21.5]} 39. Bf1 {[%clk 0:00:01.4]} 39... g4 {[%clk 0:00:21.2]} 40. fxg4
{[%clk 0:00:02.3]} 40... fxg4 {[%clk 0:00:21.8]} 41. h3 {[%clk 0:00:02.9]} 41...
gxh3+ {[%clk 0:00:21]} 42. Kxh3 {[%clk 0:00:03.8]} 42... Nf5 {[%clk 0:00:21.5]}
43. Rb1+ {[%clk 0:00:04.7]} 43... Kc7 {[%clk 0:00:20.8]} 44. Kg4 {[%clk
0:00:05.1]} 44... Nxg3 {[%clk 0:00:19.9]} 45. Kf4 {[%clk 0:00:05.1]} 45... Rc3
{[%clk 0:00:18.8]} 46. Bg2 {[%clk 0:00:04]} 46... Nh5+ {[%clk 0:00:15.3]} 47.
Kg5 {[%clk 0:00:03.2]} 47... Nf6 {[%clk 0:00:15.7]} 48. Bh1 {[%clk 0:00:01.9]}
48... Rg3+ {[%clk 0:00:13]} 49. Kf5 {[%clk 0:00:01.6]} 49... Kd6 {[%clk
0:00:12.5]} 50. Rc1 {[%clk 0:00:01.3]} 50... Nd7 {[%clk 0:00:07.5]} 51. Re1
{[%clk 0:00:02]} 51... g6+ {[%clk 0:00:06.8]} 52. Kf4 {[%clk 0:00:01.7]} 52...
Rd3 {[%clk 0:00:06.6]} 53. d5 {[%clk 0:00:01.9]} 53... Nf6 {[%clk 0:00:05.9]}
54. Re6+ {[%clk 0:00:02.1]} 54... Kd7 {[%clk 0:00:06.1]} 55. Rxf6 {[%clk
0:00:03]} 55... Rd4+ {[%clk 0:00:06.7]} 56. Kg5 {[%clk 0:00:03.9]} 56... Rd1
{[%clk 0:00:07.5]} 57. Kxg6 {[%clk 0:00:04.4]} 57... Rg1+ {[%clk 0:00:07]} 58.
Kf5 {[%clk 0:00:04]} 58... Rxh1 {[%clk 0:00:07.3]} 59. Ke5 {[%clk 0:00:04.3]}
59... Re1+ {[%clk 0:00:06.8]} 60. Kd4 {[%clk 0:00:04.5]} 60... Rd1+ {[%clk
0:00:07.7]} 61. Kc5 {[%clk 0:00:04.7]} 61... Rc1+ {[%clk 0:00:08.6]} 62. Kd4
{[%clk 0:00:05.1]} 62... Rd1+ {[%clk 0:00:09]} 63. Ke5 {[%clk 0:00:05.5]} 63...
Re1+ {[%clk 0:00:09.5]} 64. Kd4 {[%clk 0:00:05.9]} 64... Ke7 {[%clk 0:00:09.3]}
65. Re6+ {[%clk 0:00:05.1]} 65... Rxe6 {[%clk 0:00:08.5]} 66. dxe6 {[%clk
0:00:06]} 66... Kxe6 {[%clk 0:00:09.4]} 1/2-1/2

[Event "*** Titled Tuesday Blitz"]
[Site "Chess.com"]
[Date "2020.05.05"]
[Round "4"]
[White "Sychev_Klementy"]
[Black "RitvarsReimanis"]
[Result "1-0"]
[WhiteElo "2890"]
[BlackElo "2545"]
[TimeControl "180+1"]
[EndTime "10:41:55 PDT"]
[Termination "Sychev_Klementy won by checkmate"]

1. e4 {[%clk 0:03:00.9]} 1... c5 {[%clk 0:02:59.5]} 2. Nf3 {[%clk 0:02:57.3]}
2... Nc6 {[%clk 0:02:59.3]} 3. d4 {[%clk 0:02:56.2]} 3... cxd4 {[%clk
0:03:00.2]} 4. Nxd4 {[%clk 0:02:55.9]} 4... Nf6 {[%clk 0:03:00.8]} 5. Nc3 {[%clk
0:02:54.8]} 5... e5 {[%clk 0:03:01.3]} 6. Ndb5 {[%clk 0:02:54.7]} 6... d6 {[%clk
0:03:01.9]} 7. Bg5 {[%clk 0:02:54.6]} 7... a6 {[%clk 0:03:01.5]} 8. Na3 {[%clk
0:02:54.2]} 8... b5 {[%clk 0:03:01.8]} 9. Bxf6 {[%clk 0:02:54.4]} 9... gxf6
{[%clk 0:03:01.9]} 10. Nd5 {[%clk 0:02:54.4]} 10... Bg7 {[%clk 0:03:02.5]} 11.
g3 {[%clk 0:02:51.9]} 11... Ne7 {[%clk 0:02:50.3]} 12. Nxe7 {[%clk 0:02:39.2]}
12... Qxe7 {[%clk 0:02:49.3]} 13. Bg2 {[%clk 0:02:38.9]} 13... Bb7 {[%clk
0:02:46.6]} 14. Qg4 {[%clk 0:02:23.9]} 14... O-O {[%clk 0:02:45]} 15. c3 {[%clk
0:02:21.4]} 15... Qe6 {[%clk 0:02:35.7]} 16. Qe2 {[%clk 0:02:13.4]} 16... d5
{[%clk 0:02:27.3]} 17. exd5 {[%clk 0:01:45.4]} 17... Bxd5 {[%clk 0:02:26.5]} 18.
Bxd5 {[%clk 0:01:45.5]} 18... Qxd5 {[%clk 0:02:27.4]} 19. O-O {[%clk 0:01:38.2]}
19... Rfd8 {[%clk 0:02:18.3]} 20. Nc2 {[%clk 0:01:29.8]} 20... Qd2 {[%clk
0:01:52.1]} 21. Qe4 {[%clk 0:01:28.1]} 21... Rac8 {[%clk 0:01:46.2]} 22. Rad1
{[%clk 0:01:05]} 22... Qg5 {[%clk 0:01:39]} 23. Ne3 {[%clk 0:01:02.8]} 23... Qh5
{[%clk 0:01:21.9]} 24. Rfe1 {[%clk 0:00:39.7]} 24... Bf8 {[%clk 0:01:10.3]} 25.
Kg2 {[%clk 0:00:34.6]} 25... Bc5 {[%clk 0:00:59.4]} 26. Nd5 {[%clk 0:00:29.3]}
26... Kg7 {[%clk 0:00:59.8]} 27. Rd3 {[%clk 0:00:20.7]} 27... Qg6 {[%clk
0:00:59]} 28. f3 {[%clk 0:00:16.3]} 28... Rd6 {[%clk 0:00:52.4]} 29. Red1 {[%clk
0:00:13.3]} 29... Rcd8 {[%clk 0:00:52.8]} 30. g4 {[%clk 0:00:10.8]} 30... h5
{[%clk 0:00:25.7]} 31. h3 {[%clk 0:00:11]} 31... Qg5 {[%clk 0:00:17.5]} 32. b4
{[%clk 0:00:08]} 32... Ba7 {[%clk 0:00:17.5]} 33. Kg3 {[%clk 0:00:06.9]} 33...
h4+ {[%clk 0:00:14.3]} 34. Kg2 {[%clk 0:00:06.7]} 34... R8d7 {[%clk 0:00:14.6]}
35. R1d2 {[%clk 0:00:06.1]} 35... Rd8 {[%clk 0:00:14.1]} 36. Kf1 {[%clk
0:00:06.4]} 36... R8d7 {[%clk 0:00:14.4]} 37. Ke2 {[%clk 0:00:06.8]} 37... Rd8
{[%clk 0:00:13]} 38. Kd1 {[%clk 0:00:06.9]} 38... R8d7 {[%clk 0:00:13.1]} 39.
Kc2 {[%clk 0:00:07.2]} 39... Rd8 {[%clk 0:00:14]} 40. a3 {[%clk 0:00:07.3]}
40... R8d7 {[%clk 0:00:14.3]} 41. Rd1 {[%clk 0:00:07.6]} 41... Rd8 {[%clk
0:00:14.6]} 42. f4 {[%clk 0:00:06.4]} 42... exf4 {[%clk 0:00:14]} 43. Nxf4
{[%clk 0:00:06.6]} 43... Rxd3 {[%clk 0:00:14.1]} 44. Rxd3 {[%clk 0:00:05.5]}
44... Rxd3 {[%clk 0:00:14.3]} 45. Nxd3 {[%clk 0:00:05.9]} 45... f5 {[%clk
0:00:12.6]} 46. gxf5 {[%clk 0:00:04.7]} 46... Qg3 {[%clk 0:00:11.4]} 47. Nf4
{[%clk 0:00:04.8]} 47... Qe3 {[%clk 0:00:08.8]} 48. Qg2+ {[%clk 0:00:03]} 48...
Qg3 {[%clk 0:00:07.9]} 49. Nh5+ {[%clk 0:00:02.7]} 49... Kh6 {[%clk 0:00:04]}
50. Nxg3 {[%clk 0:00:03.6]} 50... hxg3 {[%clk 0:00:04.9]} 51. Qxg3 {[%clk
0:00:04.1]} 51... Kh5 {[%clk 0:00:05.8]} 52. Qg4+ {[%clk 0:00:04.4]} 52... Kh6
{[%clk 0:00:06.7]} 53. f6 {[%clk 0:00:04.9]} 53... Be3 {[%clk 0:00:06.2]} 54.
Qg7+ {[%clk 0:00:05.2]} 54... Kh5 {[%clk 0:00:06.1]} 55. Qxf7+ {[%clk
0:00:05.8]} 55... Kh4 {[%clk 0:00:06.9]} 56. Qe7 {[%clk 0:00:06.1]} 56... Bg5
{[%clk 0:00:07.8]} 57. Qe4+ {[%clk 0:00:06.2]} 57... Kh5 {[%clk 0:00:07.7]} 58.
f7 {[%clk 0:00:06.5]} 58... Bh6 {[%clk 0:00:08.6]} 59. Qg4# {[%clk 0:00:06.7]}
1-0